bitfinex-derivatives/quotes_SOLF0:USTF0_20240910
["timestamp","ask_amount","ask_price","bid_price","bid_amount"]
[1725953644741,3.68331568,135.04,134.96,14.22]
[1725953645041,3.7031,135.02,134.98,3.7038]
[1725953645642,3.7027,135.03,134.96,14.22]
[1725953645947,3.7027,135.03,134.98,14.22]
[1725953646243,3.7027,135.03,135.0,3.7033]
[1725953646442,3.7024,135.04,134.98,14.22]
[1725953646648,3.76583919,135.07,135.02,3.7028]
[1725953646846,3.702,135.06,135.02,3.7028]
[1725953647240,3.702,135.06,135.03,3.7024]
[1725953648239,3.7016,135.07,135.04,3.7023]
[1725953648547,14.22,135.13,135.02,14.22]
[1725953648747,1.12142433,135.12,135.02,14.22]
[1725953649142,3.7011,135.09,135.02,14.22]
[1725953649340,14.22,135.13,135.02,14.22]
[1725953649750,14.22,135.13,135.06,3.7018]
[1725953650252,3.701,135.09,135.06,3.7018]
[1725953650650,3.7014,135.08,135.05,3.702]
[1725953652448,14.22,135.11,135.04,3.7022]
[1725953652644,14.22,135.11,135.0,19.26393438]
[1725953653040,3.7017,135.07,135.03,3.7025]
[1725953653546,3.7022,135.05,135.02,3.7029]
[1725953654348,3.7024,135.04,135.01,3.7031]
[1725953654651,17.86629629,135.07,135.0,1.3911]
[1725953654851,3.7029,135.03,135.0,3.7033]
[1725953655447,3.7026,135.04,134.99,2.5884]
[1725953655647,17.86629629,135.07,134.99,2.5884]
[1725953656043,3.7028,135.03,135.0,3.7035]
[1725953656854,3.7029,135.02,134.99,6.292]
[1725953657754,3.7029,135.02,134.99,2.5884]
[1725953657952,3.7033,135.01,134.99,1.2877]
[1725953658348,3.7034,135.01,134.97,3.7042]
[1725953659151,3.7035,135.0,134.97,3.7042]
[1725953659353,3.68941751,135.03,134.98,3.704]
[1725953659656,3.7034,135.01,134.98,3.704]
[1725953660960,3.7031,135.02,134.99,3.7037]
[1725953661154,3.7031,135.02,134.99,12.8137]
[1725953661459,3.7032,135.01,134.98,12.8139]
[1725953661857,12.72716318,135.03,134.96,1.3722]
[1725953662060,9.11,135.0,134.96,1.3722]
[1725953662451,3.7042,134.98,134.96,1.3722]
[1725953663167,3.7038,134.99,134.96,14.1867]
[1725953664260,3.7041,134.98,134.96,10.4822]
[1725953664461,9.11,135.01,134.96,10.4822]
[1725953664854,9.11,135.0,134.96,1.3722]
[1725953665255,12.78282221,135.01,134.96,1.3722]
[1725953665454,12.78282221,135.01,134.95,1.2917]
[1725953665455,9.11,135.0,134.95,1.2917]
[1725953666056,3.7042,134.98,134.95,1.2917]
[1725953666861,3.7042,134.98,134.94,1.2988]
[1725953667256,3.7044,134.97,134.94,5.0037]
[1725953667657,9.11,134.97,134.92,3.7055]
[1725953667863,3.7047,134.96,134.91,12.76874016]
[1725953668166,34.5147585,135.05,134.94,3.7049]
[1725953668464,12.8142,134.98,134.94,3.7049]
[1725953668661,9.11,134.98,134.94,3.7049]
[1725953668865,12.81746534,134.98,134.93,3.7053]
[1725953669167,3.7044,134.97,134.93,3.7053]
[1725953669553,12.81746534,134.98,134.93,3.7053]
[1725953669758,3.7046,134.96,134.93,3.7053]
[1725953670168,3.7049,134.95,134.91,9.11]
[1725953670363,9.11,134.97,134.91,9.11]
[1725953670559,9.11,134.97,134.92,9.11]
[1725953670761,3.7047,134.96,134.92,3.7054]
[1725953670960,9.11,134.97,134.92,3.7054]
[1725953671157,9.11,134.97,134.91,9.11]
[1725953671158,3.7048,134.96,134.93,3.7054]
[1725953671360,3.70746534,134.98,134.91,9.11]
[1725953671361,12.81746534,134.98,134.91,9.11]
[1725953671560,9.11,134.98,134.91,9.11]
[1725953671966,3.7044,134.97,134.93,3.7052]
[1725953672569,3.7048,134.96,134.93,3.7052]
[1725953672964,34.5147585,135.05,134.94,3.7051]
[1725953673267,9.11,134.99,134.93,9.11]
[1725953673969,3.7043,134.97,134.93,12.8152]
[1725953675168,3.7043,134.97,134.94,3.7051]
[1725953675868,3.7043,134.97,134.93,12.8153]
[1725953676069,3.7046,134.96,134.93,12.8153]
[1725953678166,12.73045959,134.98,134.92,3.7055]
[1725953678372,9.11,134.97,134.92,3.7055]
[1725953678671,27.1100585,135.05,134.93,9.11]
[1725953678876,27.1100585,135.05,134.94,3.7051]
[1725953678877,3.7045,134.97,134.94,3.7051]
[1725953679176,3.66669137,134.98,134.93,9.11]
[1725953679673,9.11,134.97,134.93,9.11]
[1725953679861,27.1100585,135.05,134.93,3.7052]
[1725953680062,9.11,134.98,134.93,3.7052]
[1725953680265,12.8044918,134.98,134.93,3.7052]
[1725953680662,3.7044,134.97,134.93,3.7052]
[1725953680868,9.11,134.97,134.92,3.7056]
[1725953681070,9.11,134.96,134.9,9.11]
[1725953681272,9.11,134.96,134.91,3.66251482]
[1725953681273,3.705,134.95,134.91,3.66251482]
[1725953681975,3.705,134.95,134.9,9.11]
[1725953682166,3.705,134.95,134.91,3.7058]
[1725953682362,3.705,134.95,134.9,9.11]
[1725953682771,3.705,134.95,134.92,3.7056]
[1725953684161,3.7051,134.94,134.92,3.7056]
[1725953684361,3.7051,134.94,134.91,3.7058]
[1725953684972,3.7054,134.93,134.9,3.7061]
[1725953689477,3.7057,134.92,134.9,3.7061]
[1725953689870,9.11,134.94,134.89,1.3559]
[1725953690071,3.7062,134.91,134.88,1.3265]
[1725953690475,3.7062,134.91,134.89,3.7064]
[1725953690772,3.7062,134.91,134.88,1.3265]
[1725953691274,3.7062,134.91,134.89,3.7064]
[1725953692174,12.8158,134.92,134.89,3.7064]
[1725953693984,3.7061,134.91,134.88,5.0332]
[1725953694177,3.7061,134.91,134.88,1.3265]
[1725953694779,12.8157,134.92,134.89,3.7063]
[1725953695471,2.6486,135.0,134.88,1.3265]
[1725953695673,9.11,134.93,134.88,9.11]
[1725953695877,12.90347423,134.93,134.88,9.11]
[1725953696084,3.7058,134.92,134.89,3.7063]
[1725953696282,3.7058,134.92,134.88,9.11]
[1725953696679,3.7058,134.92,134.89,3.7064]
[1725953698578,3.7058,134.92,134.9,3.7062]
[1725953699478,3.7058,134.92,134.89,3.7064]
[1725953699984,12.8158,134.92,134.89,3.7064]
[1725953700184,3.706,134.91,134.88,3.7066]
[1725953700884,9.11,134.91,134.88,3.7066]
[1725953701680,12.8161,134.91,134.88,3.7066]
[1725953702584,12.8158,134.92,134.89,3.7064]
[1725953702882,12.8158,134.92,134.87,255.57123]
[1725953703284,9.11,134.92,134.9,3.7061]
[1725953704287,9.11,134.92,134.87,255.57123]
[1725953704784,9.11,134.92,134.89,3.7065]
[1725953705180,12.8158,134.92,134.89,3.7065]
[1725953706685,12.8158,134.92,134.9,3.7061]
[1725953706686,9.11,134.92,134.9,3.7061]
[1725953706882,3.79347423,134.93,134.87,264.68123]
[1725953707087,9.11,134.94,134.87,265.95673]
[1725953707280,3.75444971,134.93,134.91,3.7059]
[1725953707586,3.75444971,134.93,134.87,265.95673]
[1725953707792,7.45994971,134.93,134.9,3.7061]
[1725953708087,9.11,134.97,134.9,9.11]
[1725953708288,9.11,134.97,134.9,12.74579056]
[1725953708485,12.8144,134.97,134.94,3.705]
[1725953709983,12.8144,134.97,134.93,3.7053]
[1725953711282,3.7046,134.96,134.93,3.7053]
[1725953711783,12.8145,134.97,134.93,3.7053]
[1725953712283,12.8145,134.97,134.94,3.7051]
[1725953712485,9.11,134.97,134.94,3.7051]
[1725953712878,9.11,134.97,134.95,3.7048]
[1725953714893,9.11,134.97,134.94,3.705]
[1725953715984,9.11,134.97,134.95,3.7047]
[1725953716391,9.11,134.98,134.96,3.7046]
[1725953717389,9.11,134.98,134.95,3.7047]
[1725953718384,12.814,134.98,134.95,3.7047]
[1725953719283,9.11,134.98,134.95,3.7047]
[1725953719687,9.11,134.97,134.94,3.7049]
[1725953720883,9.11,134.95,134.87,255.56643]
[1725953721079,5.02769602,135.0,134.88,10.4759]
[1725953721080,9.11,134.94,134.88,10.4759]
[1725953721292,9.11,134.95,134.89,3.75926749]
[1725953721586,1.2344,134.99,134.91,9.11]
[1725953721786,9.11,134.97,134.91,9.11]
[1725953721987,3.7046,134.96,134.93,3.7052]
[1725953722188,12.8146,134.96,134.93,3.7052]
[1725953722688,3.7049,134.95,134.92,3.7055]
[1725953723589,12.8147,134.96,134.93,3.7053]
[1725953724586,3.7049,134.95,134.92,3.7055]
[1725953725087,9.11,134.96,134.92,3.7055]
[1725953725294,3.7049,134.95,134.92,3.7055]
[1725953726086,3.7051,134.94,134.92,3.7055]
[1725953726992,12.8154,134.93,134.88,1.3659]
[1725953727589,12.8154,134.93,134.9,3.706]
[1725953727998,3.7059,134.92,134.88,1.3659]
[1725953728291,12.8159,134.92,134.89,3.7064]
[1725953728708,9.11,134.92,134.89,3.7064]
[1725953728995,9.11,134.92,134.88,5.0725]
[1725953729198,3.7059,134.91,134.88,5.0725]
[1725953729895,3.7062,134.9,134.88,1.3659]
[1725953730791,3.7062,134.9,134.87,254.29093]
[1725953731600,3.7062,134.9,134.87,257.99783]
[1725953731900,9.11,134.88,134.87,252.98123]
[1725953732401,12.8168,134.88,134.87,252.98123]
[1725953736507,12.8168,134.88,134.87,173.50943]
[1725953736898,12.8168,134.88,134.87,155.20943]
[1725953738509,12.8168,134.88,134.87,140.37943]
[1725953739098,12.8168,134.88,134.87,79.08943]
[1725953740607,12.8168,134.88,134.87,60.78943]
[1725953741005,12.8168,134.88,134.87,45.95943]
[1725953741406,3.7078,134.85,134.81,3.7085]
[1725953741603,9.11,134.83,134.81,3.7085]
[1725953743205,9.11,134.83,134.78,2.691]
[1725953743903,9.11,134.83,134.81,3.7085]
[1725953747212,9.11,134.83,134.82,3.7084]
[1725953747512,9.11,134.83,134.78,2.691]
[1725953747910,9.11,134.83,134.81,3.7085]
[1725953749101,12.8183,134.83,134.8,3.7088]
[1725953749308,9.11,134.81,134.78,2.691]
[1725953749814,9.11,134.81,134.79,3.7091]
[1725953757217,12.8187,134.81,134.79,3.7091]
[1725953757418,9.11,134.81,134.79,3.7091]
[1725953758014,156.09070512,134.89,134.79,9.11]
[1725953758215,9.11,134.84,134.79,9.11]
[1725953758415,12.8179,134.84,134.79,9.11]
[1725953758616,9.11,134.83,134.81,3.7086]
[1725953758918,9.11,134.83,134.78,2.691]
[1725953759120,12.8184,134.83,134.8,3.709]
[1725953759312,12.81500927,134.82,134.78,2.691]
[1725953759511,9.11,134.82,134.78,2.691]
[1725953759712,16.44373191,134.82,134.79,3.7091]
[1725953759921,12.73523191,134.82,134.79,3.7091]
[1725953760307,12.8185,134.82,134.8,3.7089]
[1725953760720,12.74933209,134.82,134.78,2.691]
[1725953760920,9.11,134.8,134.78,6.4004]
[1725953761621,12.81500927,134.8,134.78,6.4004]
[1725953762919,12.81500927,134.8,134.79,3.7092]
[1725953763218,3.70500927,134.8,134.79,3.7092]
[1725953763417,12.8185,134.82,134.79,3.7092]
[1725953764027,12.89617322,134.82,134.8,3.7089]
[1725953764522,3.78617322,134.82,134.78,2.691]
[1725953764722,9.11,134.83,134.81,3.7085]
[1725953765225,3.62375632,134.82,134.81,3.7085]
[1725953765422,152.38918432,134.89,134.81,9.11]
[1725953765717,12.78903836,134.91,134.84,9.11]
[1725953765911,12.78903836,134.91,134.85,1.2811]
[1725953766514,12.78903836,134.91,134.87,3.7068]
[1725953766718,9.11,134.9,134.87,3.7068]
[1725953767021,12.8162,134.9,134.86,3.7072]
[1725953767217,9.11,134.89,134.85,1.2811]
[1725953767918,12.79311959,134.89,134.85,1.2811]
[1725953768111,12.79311959,134.89,134.85,4.9886]
[1725953768112,16.49961959,134.89,134.85,4.9886]
[1725953769029,3.7068,134.88,134.85,4.9886]
[1725953769213,12.79311959,134.89,134.85,1.2811]
[1725953769622,3.707,134.88,134.85,1.2811]
[1725953770218,1.3332,134.98,134.87,9.11]
[1725953770422,9.11,134.93,134.88,1.363]
[1725953770622,5.01848408,134.98,134.88,10.473]
[1725953770819,9.11,134.96,134.9,9.11]
[1725953771019,9.11,134.96,134.91,1.3922]
[1725953771926,12.8146,134.96,134.92,3.7055]
[1725953772821,12.8146,134.96,134.91,1.3922]
[1725953772822,12.8146,134.96,134.93,3.7053]
[1725953773025,1.3572,135.02,134.92,9.11]
[1725953773227,9.11,135.01,134.95,9.11]
[1725953773425,9.11,135.01,134.98,3.7039]
[1725953773926,9.11,135.01,134.95,9.11]
[1725953774120,9.11,135.01,134.93,1.3718]
[1725953774319,9.11,135.0,134.94,9.11]
[1725953775025,12.82173374,135.0,134.94,9.11]
[1725953776128,3.71173374,135.0,134.93,1.3718]
[1725953776327,14.23,135.02,134.93,1.3718]
[1725953776827,3.7035,135.0,134.96,3.7044]
[1725953777325,3.7038,134.99,134.95,3.7047]
[1725953778228,3.7038,134.99,134.96,3.7046]
[1725953778721,3.7036,135.0,134.96,3.7046]
[1725953779627,3.7038,134.99,134.96,3.7046]
[1725953780225,17.91393743,135.02,134.93,1.3718]
[1725953780423,14.23,135.05,134.94,14.23]
[1725953780624,3.62278556,135.05,134.96,14.23]
[1725953780820,166.42510577,135.07,135.0,3.7033]
[1725953781020,1.12200595,135.06,135.0,3.7033]
[1725953781319,14.23,135.05,134.99,3.7037]
[1725953781527,14.23,135.05,134.97,1.3782]
[1725953781528,17.9203541,135.05,134.97,1.3782]
[1725953781921,3.7031,135.02,134.97,1.3782]
[1725953783129,3.7031,135.02,134.98,3.7038]
[1725953783621,3.7031,135.02,134.97,1.3782]
[1725953783622,3.7031,135.02,134.99,3.7037]
[1725953784830,17.9203541,135.05,134.98,3.7039]
[1725953785032,17.9203541,135.05,134.97,1.3782]
[1725953785527,17.9203541,135.05,134.97,5.0823]
[1725953785919,3.7036,135.0,134.97,5.0823]
[1725953787428,3.7038,134.99,134.97,1.3782]
[1725953790542,3.70960569,134.98,134.93,1.3718]
[1725953791027,3.7045,134.97,134.94,3.705]
[1725953791625,3.70960569,134.98,134.93,5.0771]
[1725953791626,3.7046,134.96,134.93,5.0771]
[1725953793028,3.7048,134.95,134.93,1.3718]
[1725953793227,3.7048,134.95,134.92,3.7055]
[1725953797441,3.7053,134.94,134.91,3.7059]
[1725953798947,3.7054,134.93,134.91,3.7059]
[1725953799138,3.7054,134.93,134.9,12.8261]
[1725953800443,3.7054,134.93,134.9,3.7061]
[1725953801044,3.7059,134.92,134.89,1.3843]
[1725953801242,9.12,134.94,134.89,1.3843]
[1725953801437,9.12,134.93,134.89,1.3843]
[1725953801643,3.7061,134.91,134.88,5.0983]
[1725953801839,9.12,134.93,134.88,1.3917]
[1725953802437,3.7062,134.91,134.88,5.0984]
[1725953802639,9.12,134.93,134.88,5.0984]
[1725953802939,3.7061,134.91,134.88,5.0984]
[1725953803335,9.12,134.94,134.89,3.7064]
[1725953803640,3.7058,134.92,134.89,3.7064]
[1725953808339,3.7061,134.91,134.88,5.0985]
[1725953808946,7.38379207,134.91,134.88,5.0985]
[1725953809649,3.7061,134.91,134.89,3.7065]
[1725953810746,3.7057,134.92,134.89,3.7065]
[1725953811338,3.7055,134.93,134.89,9.12]
[1725953811849,3.7055,134.93,134.89,10.4511]
[1725953812147,3.7052,134.94,134.91,3.7059]
[1725953812448,9.12,134.95,134.91,3.7059]
[1725953812645,3.7052,134.94,134.91,3.7059]
[1725953812941,9.12,134.95,134.91,3.7059]
[1725953813146,3.7057,134.92,134.89,1.3311]
[1725953813749,3.7057,134.92,134.89,5.0374]
[1725953818254,3.70960569,134.98,134.89,10.4511]
[1725953818554,9.12,134.95,134.89,10.4511]
[1725953818756,12.77888023,134.95,134.89,10.4511]
[1725953818955,3.7053,134.94,134.91,3.7059]
[1725953820548,3.7054,134.93,134.9,3.7061]
[1725953820747,9.12,134.94,134.9,3.7061]
[1725953820953,9.12,134.94,134.89,1.3311]
[1725953820954,3.7058,134.92,134.89,1.3311]
[1725953821155,9.12,134.92,134.88,5.0983]
[1725953821563,9.12,134.92,134.88,1.3917]
[1725953821959,3.7061,134.91,134.88,5.0983]
[1725953824267,3.7063,134.9,134.88,1.3917]
[1725953824461,3.7063,134.9,134.85,10.3987]
[1725953824657,9.12,134.91,134.85,11.7276]
[1725953824962,12.8261,134.91,134.88,3.7067]
[1725953825160,3.7061,134.91,134.88,3.7067]
[1725953825560,3.7061,134.91,134.89,3.7065]
[1725953826252,3.7061,134.91,134.88,3.7067]
[1725953827061,3.7063,134.9,134.87,3.7069]
[1725953828266,3.7063,134.9,134.88,3.7068]
[1725953829066,3.7063,134.9,134.87,3.707]
[1725953830157,3.7063,134.9,134.88,3.7067]
[1725953831068,9.12,134.94,134.88,9.12]
[1725953831464,3.7057,134.92,134.89,3.7063]
[1725953832065,7.43585068,134.93,134.9,3.7062]
[1725953832267,7.43585068,134.93,134.88,9.12]
[1725953832665,9.12,134.94,134.88,9.12]
[1725953834171,3.7056,134.93,134.9,3.706]
[1725953834668,9.12,134.92,134.85,2.6076]
[1725953834865,9.12,134.89,134.85,2.6076]
[1725953835069,3.707,134.87,134.85,2.6076]
[1725953836875,3.707,134.87,134.83,5.0898]
[1725953837076,3.707,134.87,134.83,1.3818]
[1725953837277,3.707,134.87,134.84,3.7077]
[1725953837886,3.66138108,134.88,134.83,10.5018]
[1725953838076,3.66138108,134.88,134.85,9.12]
[1725953838271,9.12,134.9,134.85,9.12]
[1725953838885,7.36229196,134.89,134.86,3.7073]
[1725953840477,3.7064,134.9,134.86,9.12]
[1725953841176,3.7064,134.9,134.87,3.7069]
[1725953841480,9.12,134.93,134.86,9.12]
[1725953841680,9.12,134.93,134.87,9.12]
[1725953842080,3.7058,134.92,134.89,3.7063]
[1725953842280,3.68286609,134.94,134.89,9.12]
[1725953842584,9.12,134.96,134.9,9.12]
[1725953842787,7.49152146,134.95,134.92,3.7056]
[1725953843781,3.7047,134.96,134.93,3.7054]
[1725953844181,9.12,134.98,134.93,3.7054]
[1725953844182,9.12,134.98,134.93,9.12]
[1725953844591,3.7781745,135.02,134.93,9.12]
[1725953844778,9.12,135.0,134.93,9.12]
[1725953845178,3.7041,134.98,134.95,3.7048]
[1725953845382,7.41006974,134.98,134.95,3.7048]
[1725953845791,7.41006974,134.98,134.94,3.705]
[1725953845991,12.82596974,134.98,134.89,4.146]
[1725953846193,3.70596974,134.98,134.89,18.386]
[1725953846384,3.7044,134.97,134.93,3.7052]
[1725953846597,7.35303435,134.97,134.93,3.7052]
[1725953846894,3.7045,134.97,134.93,3.7052]
[1725953847287,7.50063628,134.97,134.93,3.7052]
[1725953847484,3.7046,134.96,134.93,3.7052]
[1725953848394,7.37452961,134.97,134.93,3.7052]
[1725953848696,3.7044,134.97,134.94,3.7051]
[1725953849196,7.49081055,134.97,134.94,3.7051]
[1725953849383,7.49081055,134.97,134.89,18.386]
[1725953849384,3.7048,134.96,134.93,3.7054]
[1725953849987,7.32995482,134.97,134.94,3.7051]
[1725953851386,3.7048,134.96,134.93,3.7054]
[1725953860104,3.7045,134.97,134.94,3.7049]
[1725953860495,7.32324294,134.98,134.95,3.7046]
[1725953861105,3.61914294,134.98,134.97,3.7043]
[1725953861407,3.61914294,134.98,134.91,14.24]
[1725953862399,7.32314294,134.98,134.91,14.24]
[1725953862600,7.32314294,134.98,134.95,3.7047]
[1725953867807,1.3517,135.04,134.97,9.11]
[1725953868112,10.4617,135.04,134.98,9.11]
[1725953868511,9.11,135.04,134.98,9.11]
[1725953869014,12.8003541,135.05,134.99,9.11]
[1725953869312,9.11,135.06,135.0,9.11]
[1725953869513,155.89640242,135.07,135.0,9.11]
[1725953869710,3.7025,135.04,135.01,3.703]
[1725953869906,155.89640242,135.07,135.0,9.11]
[1725953870104,10.23201589,135.06,135.0,9.11]
[1725953870303,9.11,135.06,135.0,9.11]
[1725953870511,9.11,135.06,134.97,1.4196]
[1725953870815,225.0,135.16,135.03,9.11]
[1725953871007,9.11,135.11,135.04,2.8663]
[1725953871318,1.12182203,135.1,135.04,6.64705896]
[1725953871611,1.12182203,135.1,135.04,2.8663]
[1725953871806,3.701,135.09,135.06,3.7018]
[1725953872514,3.701,135.09,135.05,3.702]
[1725953872716,3.7013,135.08,135.05,3.702]
[1725953872917,9.11,135.11,135.05,3.702]
[1725953873216,3.7012,135.09,135.05,3.702]
[1725953873619,9.11,135.11,135.06,3.7018]
[1725953873918,3.701,135.1,135.06,3.7018]
[1725953874112,9.11,135.11,135.04,2.8663]
[1725953874320,3.7012,135.09,135.04,2.8663]
[1725953874921,3.7013,135.08,135.05,3.7021]
[1725953877520,3.65925925,135.09,135.04,2.8663]
[1725953877824,9.11,135.1,135.04,2.8663]
[1725953878212,9.11,135.1,135.04,6.5686]
[1725953879023,3.7014,135.08,135.05,3.702]
[1725953879420,1.8052,135.15,135.05,9.11]
[1725953879622,3.7012,135.09,135.06,3.7018]
[1725953879818,9.11,135.12,135.05,9.11]
[1725953880015,1.12156752,135.11,135.05,9.11]
[1725953880323,3.7013,135.08,135.05,12.8119]
[1725953881921,3.7012,135.09,135.06,3.7018]
[1725953883021,3.7012,135.09,135.05,9.11]
[1725953883022,3.7009,135.1,135.07,3.7015]
[1725953883219,1.8052,135.15,135.06,9.11]
[1725953883220,9.11,135.13,135.06,9.11]
[1725953883418,1.1215385,135.12,135.06,9.11]
[1725953883621,3.7009,135.1,135.07,3.7015]
[1725953884320,3.7011,135.09,135.06,12.8117]
[1725953885123,3.7013,135.08,135.06,12.8117]
[1725953885523,9.11,135.12,135.06,12.8117]
[1725953887527,3.701,135.09,135.06,12.8117]
[1725953889028,3.701,135.09,135.06,9.11]
[1725953889235,3.7013,135.08,135.06,9.11]
[1725953889730,3.7011,135.09,135.06,12.8117]
[1725953889935,3.7011,135.09,135.06,3.7017]
[1725953890125,3.7011,135.09,135.06,12.8117]
[1725953890525,3.7013,135.08,135.05,14.2363]
[1725953891427,3.7016,135.07,135.05,14.2363]
[1725953891733,3.7016,135.07,135.04,15.6786]
[1725953894526,3.7019,135.06,135.03,3.7025]
[1725953894836,3.7019,135.06,135.03,12.8125]
[1725953895331,9.11,135.08,135.0,2.8095]
[1725953895632,9.11,135.08,135.02,9.11]
[1725953895833,3.7023,135.05,135.02,12.8129]
[1725953896028,3.7023,135.05,135.02,3.7029]
[1725953896229,3.68649089,135.09,135.0,2.8095]
[1725953896536,9.11,135.05,135.0,2.8095]
[1725953896736,3.66741099,135.04,135.0,2.8095]
[1725953897233,9.11,135.05,135.0,2.8095]
[1725953898038,12.73711002,135.05,135.0,6.5128]
[1725953898238,12.73711002,135.05,135.0,15.6228]
[1725953899139,3.7028,135.03,135.0,15.6228]
[1725953900137,3.7029,135.02,135.0,11.9195]
[1725953900536,12.73711002,135.05,135.0,11.9195]
[1725953900733,3.7028,135.03,135.0,2.8095]
[1725953900929,12.73711002,135.05,135.0,11.9195]
[1725953901128,12.73711002,135.05,135.0,2.8095]
[1725953901334,3.7031,135.02,135.0,2.8095]
[1725953902343,3.7031,135.02,134.99,9.11]
[1725953903441,9.11,135.03,134.97,2.9603]
[1725953903645,9.11,135.01,134.97,2.9603]
[1725953904247,9.11,135.01,134.95,9.11]
[1725953906156,3.7039,134.99,134.95,12.8148]
[1725953906849,3.7039,134.99,134.96,3.7045]
[1725953907049,3.7039,134.99,134.95,9.11]
[1725953907451,3.7039,134.99,134.95,12.8147]
[1725953907751,3.7039,134.99,134.93,3.78010071]
[1725953907752,9.11,134.99,134.93,3.78010071]
[1725953907947,9.11,134.96,134.92,2.8775]
[1725953908348,3.7049,134.95,134.92,2.8775]
[1725953908642,12.79626045,134.96,134.92,2.8775]
[1725953908851,3.7052,134.94,134.92,2.8775]
[1725953909945,3.7049,134.95,134.92,2.8775]
[1725953910547,3.7051,134.94,134.92,2.8775]
[1725953910939,0.6676,135.03,134.92,15.693]
[1725953911148,1.12257103,135.02,134.94,9.11]
[1725953911348,9.11,134.99,134.94,9.11]
[1725953911648,3.7046,134.96,134.93,9.11]
[1725953912042,9.11,134.98,134.93,12.8152]
[1725953912241,3.7044,134.97,134.93,12.8152]
[1725953912549,12.73729833,134.98,134.93,12.8152]
[1725953912944,3.62729833,134.98,134.93,12.8152]
[1725953913145,9.11,134.99,134.94,3.7051]
[1725953913448,3.75037069,134.98,134.94,3.7051]
[1725953914242,3.7044,134.97,134.94,3.7051]
[1725953915442,3.7046,134.96,134.93,12.8153]
[1725953915641,3.75037069,134.98,134.93,12.8153]
[1725953916453,3.7045,134.97,134.94,3.7051]
[1725953918744,12.86037069,134.98,134.93,9.11]
[1725953918745,12.8141,134.98,134.95,3.7048]
[1725953918947,9.11,134.98,134.95,3.7048]
[1725953919254,3.7038,134.99,134.96,3.7045]
[1725953919550,7.49585959,134.99,134.96,3.7045]
[1725953919754,3.7038,134.99,134.96,3.7045]
[1725953920254,7.49938256,134.99,134.96,3.7045]
[1725953920857,3.704,134.98,134.95,3.7047]
[1725953922649,3.704,134.98,134.96,3.7046]
[1725953922850,7.49948256,134.99,134.96,3.7046]
[1725953924049,9.11,135.01,134.94,9.11]
[1725953924254,3.79595315,135.0,134.94,9.11]
[1725953924450,9.11,135.01,134.94,9.11]
[1725953924655,207.0218,135.03,135.0,9.11]
[1725953924960,207.0218,135.03,135.02,9.11]
[1725953925157,204.7377,135.03,135.02,12.8129]
[1725953925558,202.4536,135.03,135.02,12.8129]
[1725953925753,114.9123,135.03,135.02,12.8129]
[1725953925953,106.6148,135.03,135.02,12.8129]
[1725953926158,93.9948,135.03,135.02,17.9129]
[1725953931166,5.2548,135.03,135.02,17.9129]
[1725953931367,0.3329,135.13,135.07,3.7015]
[1725953931568,1.12147487,135.12,135.07,3.7015]
[1725953932160,3.7007,135.11,135.07,3.7015]
[1725953932361,3.94929878,135.13,135.06,3.7017]